fUST/lending_fUST_20240524
["ID","MTS","AMOUNT","RATE_DAILY","PERIOD"]
[327837388,1716535841561,-500.0,0.00024652,2]
[327837389,1716535841570,-15621.95965866,0.00024654,11]
[327837390,1716535841579,-359.50100004,0.00024654,2]
[327837391,1716535841588,-1984.19654754,0.00024654,2]
[327837392,1716535841597,-550.9904196,0.00024654,2]
[327837393,1716535841606,-6724.77355733,0.00024654,2]
[327837410,1716535843708,-417.3162074,0.00024402,2]
[327837412,1716535843726,-4224.05998585,0.00024411,2]
[327837414,1716535843743,-2706.77311048,0.00024654,2]
[327837415,1716535843759,-566.19139337,0.00024654,2]
[327837416,1716535844220,-757.26804943,0.00024557,2]
[327837417,1716535844233,-141.46273069,0.00024654,2]
[327837418,1716535844247,-1326.65657312,0.00024654,2]
[327837419,1716535844265,-34956.68450139,0.00024654,2]
[327837420,1716535844279,-281.45154285,0.00024655,2]
[327837421,1716535844293,-154.98450155,0.00024655,2]
[327837422,1716535844310,-1474.66,0.00024655,4]
[327837423,1716535844325,-1474.66,0.00024655,4]
[327837424,1716535844342,-1474.66,0.00024655,4]
[327837426,1716535844359,-40138.86310836,0.00024656,2]
[327837427,1716535844371,-1474.66,0.00024656,4]
[327837428,1716535844383,-1474.66,0.00024656,4]
[327837429,1716535844395,-1474.66,0.00024656,4]
[327837430,1716535844410,-1474.66,0.00024656,4]
[327837431,1716535844425,-1474.66,0.00024656,4]
[327837432,1716535844439,-1474.66,0.00024656,4]
[327837433,1716535844452,-1474.66,0.00024656,4]
[327837434,1716535844465,-1474.66,0.00024656,4]
[327837435,1716535844480,-1474.66,0.00024656,4]
[327837436,1716535844494,-496.0,0.00024657,2]
[327837437,1716535844507,-14009.44344986,0.00024657,11]
[327837438,1716535844519,-500.0,0.00024657,2]
[327837439,1716535844533,-500.0,0.00024657,2]
[327837440,1716535844551,-500.0,0.00024657,2]
[327837441,1716535844565,-532.73716483,0.00024657,2]
[327837442,1716535844580,-500.0,0.00024657,2]
[327837443,1716535844594,-500.0,0.00024657,2]
[327837444,1716535844607,-223.63159639,0.00024657,2]
[327837445,1716535844641,-276.36840361,0.00024657,2]
[327837446,1716535844655,-500.0,0.00024657,2]
[327837447,1716535844668,-375.45,0.00024657,2]
[327837448,1716535844684,-501.54951824,0.00024657,2]
[327837449,1716535844698,-512.88341509,0.00024657,2]
[327837450,1716535844712,-500.0,0.00024657,2]
[327837451,1716535844728,-500.0,0.00024657,2]
[327837452,1716535844743,-500.0,0.00024657,2]
[327837453,1716535844757,-500.0,0.00024657,2]
[327837454,1716535844771,-500.0,0.00024657,2]
[327837455,1716535844785,-500.0,0.00024657,2]
[327837456,1716535844798,-581.1,0.00024657,2]
[327837457,1716535844812,-500.0,0.00024657,2]
[327837458,1716535844825,-500.0,0.00024657,2]
[327837459,1716535844839,-500.0,0.00024657,2]
[327837460,1716535844852,-1006.05891986,0.00024657,2]
[327837461,1716535844867,-500.0,0.00024657,2]
[327837462,1716535844881,-500.0,0.00024657,2]
[327837463,1716535844895,-500.0,0.00024657,2]
[327837464,1716535844909,-500.0,0.00024657,2]
[327837465,1716535844922,-500.0,0.00024657,2]
[327837466,1716535844935,-500.0,0.00024657,2]
[327837467,1716535844949,-500.0,0.00024657,2]
[327837468,1716535844962,-1582.01,0.00024657,2]
[327837469,1716535844978,-500.0,0.00024657,2]
[327837470,1716535844991,-500.0,0.00024657,2]
[327837471,1716535845004,-500.0,0.00024657,2]
[327837472,1716535845016,-300.0,0.00024657,2]
[327837473,1716535845029,-500.0,0.00024657,2]
[327837474,1716535845041,-500.0,0.00024657,2]
[327837475,1716535845054,-502.42872022,0.00024657,2]
[327837476,1716535845068,-500.0,0.00024657,2]
[327837477,1716535845082,-503.18804913,0.00024657,2]
[327837478,1716535845096,-500.0,0.00024657,2]
[327837479,1716535845110,-500.92468588,0.00024657,2]
[327837480,1716535845123,-500.0,0.00024657,2]
[327837481,1716535845137,-500.0,0.00024657,2]
[327837482,1716535845150,-500.0,0.00024657,2]
[327837483,1716535845163,-502.25429433,0.00024657,2]
[327837484,1716535845178,-500.0,0.00024657,2]
[327837485,1716535845190,-500.0,0.00024657,2]
[327837486,1716535845202,-508.59753734,0.00024657,2]
[327837487,1716535845215,-502.11323694,0.00024657,2]
[327837488,1716535845227,-500.0,0.00024657,2]
[327837489,1716535845240,-500.0,0.00024657,2]
[327837490,1716535845252,-500.0,0.00024657,2]
[327837491,1716535845266,-500.0,0.00024657,2]
[327837492,1716535845278,-1012.5,0.00024657,2]
[327837493,1716535845290,-1000.0,0.00024657,2]
[327837494,1716535845303,-502.34377715,0.00024657,2]
[327837495,1716535845316,-500.0,0.00024657,2]
[327837496,1716535845328,-202.48410108,0.00024657,2]
[327837497,1716535845340,-555.19,0.00024657,2]
[327837498,1716535845355,-500.0,0.00024657,2]
[327837499,1716535845367,-151.38396266,0.00024657,2]
[327837500,1716535845380,-500.0,0.00024657,2]
[327837501,1716535845393,-500.0,0.00024657,2]
[327837502,1716535845403,-500.0,0.00024657,2]
[327837503,1716535845413,-723.84,0.00024657,2]
[327837504,1716535845423,-723.84,0.00024657,3]
[327837505,1716535845433,-723.84,0.00024657,4]
[327837506,1716535845444,-723.84,0.00024657,5]
[327837507,1716535845454,-723.84,0.00024657,6]
[327837508,1716535845464,-723.84,0.00024657,7]
[327837509,1716535845475,-723.84,0.00024657,8]
[327837510,1716535845484,-723.84,0.00024657,9]
[327837511,1716535845677,-502.4548231,0.00024657,2]
[327837512,1716535845697,-723.84,0.00024657,10]
[327837513,1716535845710,-723.84,0.00024657,11]
[327837514,1716535845719,-723.84,0.00024657,12]
[327837515,1716535845730,-723.84,0.00024657,13]
[327837516,1716535845739,-723.84,0.00024657,14]
[327837517,1716535845748,-723.84,0.00024657,15]
[327837518,1716535845757,-500.0,0.00024657,2]
[327837519,1716535845766,-502.80225346,0.00024657,2]
[327837520,1716535845776,-503.17215185,0.00024657,2]
[327837521,1716535845786,-504.5003027,0.00024657,2]
[327837522,1716535845795,-506.43130141,0.00024657,2]
[327837523,1716535845804,-502.87109128,0.00024657,2]
[327837524,1716535845814,-987.81,0.00024657,2]
[327837525,1716535845823,-501.40166667,0.00024657,2]
[327837526,1716535845832,-500.78200161,0.00024657,2]
[327837527,1716535845841,-670.23,0.00024657,2]
[327837528,1716535845851,-506.46803111,0.00024657,2]
[327837529,1716535845866,-2267.32,0.00024657,2]
[327837530,1716535845875,-506.55149359,0.00024657,2]
[327837531,1716535845884,-500.0,0.00024657,2]
[327837532,1716535845893,-2775.47,0.00024657,2]
[327837533,1716535845902,-500.0,0.00024657,2]
[327837534,1716535845911,-500.0,0.00024657,2]
[327837535,1716535845920,-500.0,0.00024657,2]
[327837536,1716535845929,-794.2,0.00024657,2]
[327837537,1716535845951,-500.0,0.00024657,2]
[327837538,1716535845961,-500.0,0.00024657,2]
[327837539,1716535845972,-236.16224955,0.00024657,2]
[327837540,1716535845982,-500.0,0.00024657,2]
[327837541,1716535845992,-1294.32,0.00024657,2]
[327837542,1716535846002,-666.27,0.00024657,2]
[327837543,1716535846012,-502.70004736,0.00024657,2]
[327837544,1716535846022,-500.0,0.00024657,2]
[327837546,1716535846032,-1853.02,0.00024657,2]
[327837547,1716535846042,-500.0,0.00024657,2]
[327837548,1716535846051,-500.0,0.00024657,2]
[327837549,1716535846061,-626.16,0.00024657,2]
[327837550,1716535846071,-500.0,0.00024657,2]
[327837551,1716535846081,-524.2,0.00024657,2]
[327837552,1716535846091,-500.0,0.00024657,2]
[327837553,1716535846100,-914.56,0.00024657,2]
[327837554,1716535846110,-500.0,0.00024657,2]
[327837555,1716535846120,-500.0,0.00024657,2]
[327837556,1716535846130,-1393.88,0.00024657,2]
[327837557,1716535846140,-500.0,0.00024657,2]
[327837558,1716535846150,-507.38165068,0.00024657,2]
[327837559,1716535846160,-500.0,0.00024657,2]
[327837560,1716535846170,-500.0,0.00024657,2]
[327837561,1716535846179,-1151.22,0.00024657,2]
[327837562,1716535846189,-516.57363856,0.00024657,2]
[327837563,1716535846199,-500.0,0.00024657,2]
[327837564,1716535846208,-500.0,0.00024657,2]
[327837565,1716535846218,-500.0,0.00024657,2]
[327837566,1716535846229,-500.0,0.00024657,2]
[327837567,1716535846239,-500.0,0.00024657,2]
[327837568,1716535846248,-500.0,0.00024657,2]
[327837569,1716535846265,-500.0,0.00024657,2]
[327837570,1716535846275,-974.46,0.00024657,2]
[327837571,1716535846285,-500.0,0.00024657,2]
[327837572,1716535846295,-502.32059755,0.00024657,2]
[327837573,1716535846305,-500.0,0.00024657,2]
[327837574,1716535846315,-500.0,0.00024657,2]
[327837575,1716535846324,-731.32,0.00024657,2]
[327837576,1716535846335,-500.0,0.00024657,2]
[327837577,1716535846344,-500.0,0.00024657,2]
[327837578,1716535846354,-910.28,0.00024657,2]
[327837579,1716535846365,-500.0,0.00024657,2]
[327837580,1716535846374,-1759.64,0.00024657,2]
[327837581,1716535846384,-500.0,0.00024657,2]
[327837582,1716535846394,-500.0,0.00024657,2]
[327837583,1716535846403,-500.0,0.00024657,2]
[327837584,1716535846413,-558.95,0.00024657,2]
[327837585,1716535846422,-500.0,0.00024657,2]
[327837586,1716535846432,-692.73,0.00024657,2]
[327837587,1716535846442,-2138.04,0.00024657,2]
[327837588,1716535846451,-611.62,0.00024657,2]
[327837589,1716535846461,-500.0,0.00024657,2]
[327837590,1716535846470,-500.0,0.00024657,2]
[327837592,1716535846481,-529.32,0.00024657,2]
[327837594,1716535846491,-525.66,0.00024657,2]
[327837595,1716535846500,-502.21254289,0.00024657,2]
[327837597,1716535846509,-500.0,0.00024657,2]
[327837598,1716535846519,-503.39125343,0.00024657,2]
[327837599,1716535846528,-2751.42,0.00024657,2]
[327837600,1716535846538,-1028.66,0.00024657,2]
[327837601,1716535846547,-504.50560444,0.00024657,2]
[327837602,1716535846557,-500.0,0.00024657,2]
[327837603,1716535846567,-502.60946117,0.00024657,2]
[327837604,1716535846576,-172.10038791,0.00024657,2]
[327837605,1716535846586,-500.0,0.00024657,2]
[327837606,1716535846595,-500.0,0.00024657,2]
[327837607,1716535846605,-500.0,0.00024657,2]
[327837608,1716535846615,-503.96367944,0.00024657,2]
[327837609,1716535846624,-500.0,0.00024657,2]
[327837610,1716535846633,-500.0,0.00024657,2]
[327837611,1716535846643,-500.0,0.00024657,2]
[327837612,1716535846653,-500.0,0.00024657,2]
[327837613,1716535846662,-503.11017485,0.00024657,2]
[327837614,1716535846672,-500.0,0.00024657,2]
[327837615,1716535846681,-500.0,0.00024657,2]
[327837616,1716535846690,-1245.47,0.00024657,2]
[327837617,1716535846699,-587.54573971,0.00024657,2]
[327837618,1716535846708,-2114.08,0.00024657,2]
[327837619,1716535846718,-500.0,0.00024657,2]
[327837620,1716535846730,-2053.16,0.00024657,2]
[327837621,1716535846739,-500.0,0.00024657,2]
[327837622,1716535846748,-833.51,0.00024657,2]
[327837623,1716535846758,-213.59319437,0.00024657,2]
[327837624,1716535846768,-513.93,0.00024657,2]
[327837625,1716535846777,-502.2480278,0.00024657,2]
[327837626,1716535846788,-771.62,0.00024657,2]
[327837627,1716535846797,-500.0,0.00024657,2]
[327837628,1716535846807,-500.0,0.00024657,2]
[327837629,1716535846816,-2047.0,0.00024657,2]
[327837630,1716535846826,-500.0,0.00024657,2]
[327837631,1716535846835,-1529.1,0.00024657,2]
[327837632,1716535846844,-1529.1,0.00024657,3]
[327837633,1716535846854,-1529.1,0.00024657,4]
[327837634,1716535846865,-1529.1,0.00024657,5]
[327837635,1716535846875,-1529.1,0.00024657,6]
[327837636,1716535846885,-1529.1,0.00024657,7]
[327837637,1716535846894,-500.0,0.00024657,2]
[327837638,1716535846904,-1529.1,0.00024657,8]
[327837639,1716535846914,-1529.1,0.00024657,9]
[327837641,1716535846923,-1529.1,0.00024657,10]
[327837643,1716535846933,-1529.1,0.00024657,11]
[327837645,1716535846943,-1529.1,0.00024657,12]
[327837647,1716535846952,-1529.1,0.00024657,13]
[327837648,1716535846962,-500.0,0.00024657,2]
[327837649,1716535846972,-500.0,0.00024657,2]
[327837650,1716535846982,-18740.14,0.00024657,2]
[327837651,1716535846991,-500.0,0.00024657,2]
[327837652,1716535847000,-281.4507644,0.00024657,2]
[327837653,1716535847010,-2437.95,0.00024657,2]
[327837654,1716535847019,-500.0,0.00024657,2]
[327837655,1716535847029,-500.0,0.00024657,2]
[327837656,1716535847038,-2246.32,0.00024657,2]
[327837657,1716535847048,-535.92232309,0.00024657,2]
[327837658,1716535847057,-501.72030837,0.00024657,2]
[327837659,1716535847066,-1166.31,0.00024657,2]
[327837660,1716535847076,-500.0,0.00024657,2]
[327837661,1716535847085,-2034.44,0.00024657,2]
[327837662,1716535847095,-1710.63,0.00024657,2]
[327837663,1716535847104,-4444.91,0.00024657,2]
[327837664,1716535847114,-500.0,0.00024657,2]
[327837665,1716535847123,-500.0,0.00024657,2]
[327837666,1716535847133,-4112.07,0.00024657,2]
[327837667,1716535847142,-2491.27,0.00024657,2]
[327837668,1716535847151,-502.79209964,0.00024657,2]
[327837669,1716535847161,-511.47709504,0.00024657,2]
[327837670,1716535847172,-500.0,0.00024657,2]
[327837671,1716535847181,-500.0,0.00024657,2]
[327837672,1716535847191,-500.0,0.00024657,2]
[327837673,1716535847201,-1489.9,0.00024657,2]
[327837674,1716535847210,-501.81017198,0.00024657,2]
[327837675,1716535847220,-500.0,0.00024657,2]
[327837676,1716535847230,-696.67,0.00024657,2]
[327837677,1716535847240,-1651.54,0.00024657,2]
[327837678,1716535847250,-500.0,0.00024657,2]
[327837679,1716535847261,-890.22,0.00024657,2]
[327837680,1716535847276,-503.11560485,0.00024657,2]
[327837681,1716535847286,-844.54,0.00024657,2]
[327837682,1716535847296,-501.41107373,0.00024657,2]
[327837683,1716535847306,-500.0,0.00024657,2]
[327837684,1716535847316,-500.0,0.00024657,2]
[327837685,1716535847326,-500.0,0.00024657,3]
[327837686,1716535847336,-500.0,0.00024657,4]
[327837687,1716535847348,-500.0,0.00024657,5]
[327837688,1716535847359,-500.0,0.00024657,6]
[327837689,1716535847369,-658.95,0.00024657,2]
[327837690,1716535847378,-500.0,0.00024657,7]
[327837691,1716535847388,-500.0,0.00024657,8]
[327837692,1716535847398,-500.0,0.00024657,9]
[327837693,1716535847407,-500.0,0.00024657,2]
[327837694,1716535847417,-500.0,0.00024657,10]
[327837695,1716535847426,-500.0,0.00024657,11]
[327837696,1716535847436,-500.0,0.00024657,12]
[327837697,1716535847446,-500.0,0.00024657,13]
[327837698,1716535847456,-500.0,0.00024657,14]
[327837699,1716535847466,-454.43231365,0.00024657,15]
[327837700,1716535847476,-500.0,0.00024657,2]
[327837701,1716535847486,-500.0,0.00024657,2]
[327837702,1716535847495,-3335.58,0.00024657,2]
[327837703,1716535847505,-509.75868457,0.00024657,2]
[327837704,1716535847514,-503.63492033,0.00024657,2]
[327837705,1716535847524,-604.27,0.00024657,2]
[327837706,1716535847533,-500.0,0.00024657,2]
[327837707,1716535847543,-500.0,0.00024657,2]
[327837708,1716535847552,-3000.0,0.00024657,2]
[327837709,1716535847562,-2892.7,0.00024657,2]
[327837710,1716535847571,-1261.85,0.00024657,2]
[327837711,1716535847581,-500.0,0.00024657,2]
[327837712,1716535847591,-500.0,0.00024657,2]
[327837713,1716535847600,-500.0,0.00024657,2]
[327837714,1716535847610,-475.23686733,0.00024657,2]
[327837715,1716535847619,-500.0,0.00024657,2]
[327837716,1716535847628,-500.0,0.00024657,2]
[327837717,1716535847637,-890.43,0.00024657,2]
[327837718,1716535847647,-500.0,0.00024657,2]
[327837719,1716535847656,-603.5164258,0.00024657,2]
[327837720,1716535847666,-604.16,0.00024657,2]
[327837721,1716535847675,-500.0,0.00024657,2]
[327837722,1716535847684,-649.07274611,0.00024657,2]
[327837723,1716535847693,-537.12,0.00024657,2]
[327837724,1716535847703,-502.6394185,0.00024657,2]
[327837725,1716535847712,-500.0,0.00024657,2]
[327837726,1716535847723,-500.0,0.00024657,2]
[327837727,1716535847732,-1335.77,0.00024657,2]
[327837728,1716535847741,-501.95706826,0.00024657,2]
[327837729,1716535847750,-504.00304813,0.00024657,2]
[327837730,1716535847759,-5831.2,0.00024657,2]
[327837731,1716535847768,-500.0,0.00024657,2]
[327837732,1716535847778,-1079.79,0.00024657,2]
[327837733,1716535847787,-500.0,0.00024657,2]
[327837734,1716535847797,-2961.7,0.00024657,2]
[327837735,1716535847806,-500.0,0.00024657,2]
[327837736,1716535847815,-500.0,0.00024657,2]
[327837737,1716535847825,-554.60685804,0.00024657,2]
[327837738,1716535847835,-500.0,0.00024657,2]
[327837739,1716535847844,-500.0,0.00024657,2]
[327837740,1716535847854,-500.0,0.00024657,2]
[327837741,1716535847864,-702.83,0.00024657,2]
[327837742,1716535847873,-500.0,0.00024657,2]
[327837743,1716535847883,-795.95,0.00024657,2]
[327837744,1716535847893,-630.65725454,0.00024657,2]
[327837745,1716535847903,-500.0,0.00024657,2]
[327837746,1716535847912,-730.53,0.00024657,2]
[327837747,1716535847922,-1420.98,0.00024657,2]
[327837748,1716535847931,-500.0,0.00024657,2]
[327837749,1716535847942,-8692.48,0.00024657,2]
[327837750,1716535847952,-8692.48,0.00024657,3]
[327837751,1716535847962,-8692.48,0.00024657,4]
[327837752,1716535847973,-8692.48,0.00024657,5]
[327837753,1716535847982,-500.0,0.00024657,2]
[327837754,1716535847992,-8692.48,0.00024657,6]
[327837755,1716535848002,-8692.48,0.00024657,7]
[327837756,1716535848013,-8692.48,0.00024657,8]
[327837757,1716535848022,-8692.48,0.00024657,9]
[327837758,1716535848032,-8692.48,0.00024657,10]
[327837759,1716535848042,-8692.48,0.00024657,11]
[327837760,1716535848051,-8692.48,0.00024657,12]
[327837761,1716535848062,-8692.48,0.00024657,13]
[327837762,1716535848072,-8692.48,0.00024657,14]
[327837763,1716535848082,-8692.48,0.00024657,15]
[327837764,1716535848092,-8692.48,0.00024657,16]
[327837765,1716535848102,-1928.19,0.00024657,2]
[327837766,1716535848112,-502.32256459,0.00024657,2]
[327837767,1716535848122,-503.37661246,0.00024657,2]
[327837768,1716535848132,-500.0,0.00024657,2]
[327837769,1716535848141,-2723.07,0.00024657,2]
[327837770,1716535848151,-501.24618383,0.00024657,2]
[327837771,1716535848162,-501.97141397,0.00024657,2]
[327837772,1716535848172,-500.0,0.00024657,2]
[327837773,1716535848182,-2913.64,0.00024657,2]
[327837774,1716535848192,-504.43456438,0.00024657,2]
[327837775,1716535848203,-500.0,0.00024657,2]
[327837776,1716535848213,-500.0,0.00024657,2]
[327837777,1716535848225,-753.88,0.00024657,2]
[327837778,1716535848235,-507.19216216,0.00024657,2]
[327837779,1716535848244,-7164.15,0.00024657,2]
[327837780,1716535848254,-501.76484962,0.00024657,2]
[327837781,1716535848270,-500.0,0.00024657,2]
[327837782,1716535848280,-500.0,0.00024657,2]
[327837783,1716535848291,-500.0,0.00024657,3]
[327837784,1716535848302,-753.88,0.00024657,3]
[327837785,1716535848313,-500.0,0.00024657,4]
[327837786,1716535848323,-500.0,0.00024657,5]
[327837787,1716535848334,-500.0,0.00024657,2]
[327837788,1716535848344,-753.88,0.00024657,4]
[327837789,1716535848355,-753.88,0.00024657,5]
[327837790,1716535848365,-500.0,0.00024657,6]
[327837791,1716535848375,-753.88,0.00024657,6]
[327837792,1716535848386,-500.0,0.00024657,2]
[327837793,1716535848396,-753.88,0.00024657,7]
[327837794,1716535848405,-500.0,0.00024657,7]
[327837795,1716535848415,-637.30503085,0.00024657,8]
[327837796,1716535848425,-753.88,0.00024657,8]
[327837797,1716535848435,-753.88,0.00024657,9]
[327837798,1716535848445,-753.88,0.00024657,10]
[327837799,1716535848455,-167.32976926,0.00024657,2]
[327837800,1716535848465,-753.88,0.00024657,11]
[327837801,1716535848475,-753.88,0.00024657,12]
[327837802,1716535848485,-753.88,0.00024657,13]
[327837803,1716535848495,-753.88,0.00024657,14]
[327837804,1716535848504,-500.0,0.00024657,2]
[327837805,1716535848515,-753.88,0.00024657,15]
[327837806,1716535848527,-753.88,0.00024657,16]
[327837807,1716535848538,-500.0,0.00024657,2]
[327837808,1716535848548,-500.0,0.00024657,2]
[327837809,1716535848559,-20151.01,0.00024657,2]
[327837810,1716535848568,-500.0,0.00024657,2]
[327837811,1716535848578,-502.5409532,0.00024657,2]
[327837812,1716535848588,-500.0,0.00024657,2]
[327837813,1716535848598,-598.13,0.00024657,2]
[327837814,1716535848608,-1574.57,0.00024657,2]
[327837815,1716535848618,-504.0601119,0.00024657,2]
[327837816,1716535848627,-568.55,0.00024657,2]
[327837817,1716535848637,-500.0,0.00024657,2]
[327837818,1716535848646,-2555.44,0.00024657,2]
[327837819,1716535848656,-500.0,0.00024657,2]
[327837820,1716535848667,-500.0,0.00024657,2]
[327837821,1716535848678,-11212.43,0.00024657,2]
[327837822,1716535848688,-500.0,0.00024657,2]
[327837823,1716535848698,-505.09553363,0.00024657,2]
[327837824,1716535848708,-500.0,0.00024657,2]
[327837825,1716535848719,-500.0,0.00024657,2]
[327837826,1716535848729,-500.0,0.00024657,2]
[327837827,1716535848740,-930.75,0.00024657,2]
[327837828,1716535848751,-503.53857907,0.00024657,2]
[327837829,1716535848761,-500.0,0.00024657,2]
[327837830,1716535848771,-2414.78,0.00024657,2]
[327837831,1716535848781,-500.0,0.00024657,2]
[327837832,1716535848791,-3350.71,0.00024657,2]
[327837833,1716535848801,-1021.71,0.00024657,2]
[327837834,1716535848812,-856.52,0.00024657,2]
[327837835,1716535848822,-503.85023929,0.00024657,2]
[327837836,1716535848833,-967.76,0.00024657,2]
[327837837,1716535848843,-611.63,0.00024657,2]
[327837838,1716535848996,-2482.37,0.00024657,2]
[327837839,1716535849006,-501.29792354,0.00024657,2]
[327837840,1716535849016,-1323.96,0.00024657,2]
[327837841,1716535849026,-885.61,0.00024657,2]
[327837842,1716535849036,-501.0920356,0.00024657,2]
[327837843,1716535849046,-862.17,0.00024657,2]
[327837844,1716535849056,-200.0,0.00024658,15]
[327837845,1716535849066,-1529.1,0.00024687,14]
[327837846,1716535849076,-1474.66,0.00024687,4]
[327837847,1716535849086,-9559.64560383,0.00024688,2]
[327837848,1716535849096,-426.99786164,0.00024688,2]
[327837849,1716535849106,-166.666666,0.00024837,2]
[327837850,1716535849117,-24532.69231008,0.0002484,3]
[327837851,1716535849127,-8692.48,0.00024927,17]
[327837852,1716535849137,-753.88,0.00024927,17]
[327837853,1716535849147,-723.84,0.00024928,16]
[327837854,1716535849157,-723.84,0.00024928,17]
[327837855,1716535849166,-1529.1,0.00024929,15]
[327837856,1716535849176,-1529.1,0.00024929,16]
[327837857,1716535849186,-1474.66,0.00024929,4]
[327837858,1716535849196,-1474.66,0.00024929,4]
[327837859,1716535849206,-8692.48,0.00024929,18]
[327837860,1716535849216,-8692.48,0.00024929,19]
[327837861,1716535849228,-8692.48,0.00024929,20]
[327837862,1716535849238,-753.88,0.00024929,18]
[327837863,1716535849248,-753.88,0.00024929,19]
[327837864,1716535849261,-753.88,0.00024929,20]
[327837865,1716535849275,-723.84,0.0002493,18]
[327837866,1716535849284,-723.84,0.0002493,19]
[327837867,1716535849295,-723.84,0.0002493,20]
[327837868,1716535849306,-723.84,0.0002493,21]
[327837869,1716535849316,-723.84,0.0002493,21]
[327837870,1716535849326,-723.84,0.0002493,21]
[327837871,1716535849337,-723.84,0.0002493,21]
[327837872,1716535849349,-723.93303497,0.0002493,21]
[327837873,1716535849359,-1529.1,0.0002493,17]
[327837874,1716535849369,-1529.1,0.0002493,18]
[327837875,1716535849379,-1529.1,0.0002493,19]
[327837876,1716535849389,-1529.1,0.0002493,20]
[327837877,1716535849398,-1529.1,0.0002493,21]
[327837878,1716535849408,-1529.1,0.0002493,21]
[327837879,1716535849418,-1529.1,0.0002493,21]
[327837880,1716535849428,-1529.1,0.0002493,21]
[327837881,1716535849437,-1529.19876046,0.0002493,21]
[327837882,1716535849448,-1474.66,0.0002493,4]
[327837883,1716535849457,-1474.66,0.0002493,4]
[327837884,1716535849467,-1474.66,0.0002493,4]
[327837885,1716535849477,-1474.66,0.0002493,4]
[327837886,1716535849486,-1474.66,0.0002493,4]
[327837887,1716535849496,-1474.66,0.0002493,4]
[327837888,1716535849505,-1474.66,0.0002493,4]
[327837889,1716535849514,-1474.66,0.0002493,4]
[327837890,1716535849524,-1474.72107786,0.0002493,4]
[327837891,1716535849533,-8692.48,0.0002493,21]
[327837892,1716535849543,-8692.48,0.0002493,21]
[327837893,1716535849552,-8692.48,0.0002493,21]
[327837894,1716535849562,-8692.48,0.0002493,21]
[327837895,1716535849571,-8692.71692034,0.0002493,21]
[327837896,1716535849580,-753.88,0.0002493,21]
[327837897,1716535849590,-753.88,0.0002493,21]
[327837898,1716535849599,-753.88,0.0002493,21]
[327837899,1716535849608,-753.88,0.0002493,21]
[327837900,1716535849618,-522.32960319,0.0002493,21]
[327837901,1716535849812,-231.69580521,0.0002493,21]
[327837902,1716535849822,-619.23883333,0.00024931,3]
[327837903,1716535849831,-488.72195212,0.00024931,2]
[327837915,1716536829157,-166.666666,0.00022969,2]
[327837916,1716536829181,-2149.773334,0.00023422,2]
[327838002,1716537033612,-5042.52938,0.00023422,2]
[327838003,1716537033621,-2000.0,0.00024,2]
[327838004,1716537033631,-385.829102,0.00024384,2]
[327838005,1716537033640,-802.03533172,0.00024557,2]
[327838006,1716537033650,-262.61365011,0.00024557,2]
[327838007,1716537033660,-6016.00571347,0.0002463,2]
[327838008,1716537033673,-354.2,0.00024647,3]
[327838009,1716537033683,-660.40973469,0.00024655,2]
[327838010,1716537033693,-7539.41506108,0.00024655,2]